Cogmind - Beta 11.1 @@@ ROGUE MODE // 2022.07.02 @ 12:29:45 Player: Jezoensis Result: Destroyed by as-33511 with Assembled Maul Performance ------------- Evolutions (0) 0 Regions Visited (4) 800 Robots Destroyed (16) 80 Value Destroyed (326) 326 Prototype IDs (23) 460 Alien Tech Used (0) 0 Bonus (300) 300 TOTAL SCORE: 1966 Bonus ------- Aligned with FarCom 300 Cogmind --------- Core Integrity 0/250 Matter 202/300 Energy 84/100 System Corruption 0% Temperature Cool (0) Movement Treading (240) Ox1 Location -9/Mines Parts ------- > --- POWER (1) -------- (None) > --- PROPULSION (2) --- Light Treads Compact Wheel > --- UTILITY (2) ------ Improved Heat Sink Large Storage Unit > --- WEAPON (2) ------- EM Pulse Gun Assault Rifle > --- INVENTORY (15) --- Light Treads High-capacity Matter Pod (200) High-capacity Matter Pod (200) Improved Terrain Scanner Terrain Scan Processor Particle Gun Assault Rifle Longsword +1 Peak State ------------ > --- POWER ------------ Light Nuclear Core > --- PROPULSION ------- Light Treads Light Treads > --- UTILITY ---------- Improved Heat Sink Large Storage Unit > --- WEAPON ----------- EM Pulse Gun Assault Rifle > --- INVENTORY -------- Light Treads Compact Wheel High-capacity Matter Pod High-capacity Matter Pod Improved Terrain Scanner Terrain Scan Processor Particle Gun Assault Rifle Longsword +1 [Rating: 13] Favorites ----------- Power Ion Engine Engine Ion Engine Power Core Light Nuclear Core Propulsion Wheel Treads Light Treads Wheel Wheel Utility Improved Terrain Scanner Device Improved Terrain Scanner Storage Large Storage Unit Weapon Assault Rifle Energy Gun EM Pulse Gun Ballistic Gun Assault Rifle Launcher Grenade Launcher Build | -11 -10 -10 -10 -9 ------- Run | Scr Mat Min Exi Min Slots Evolved . | . . . . . Power . | . . . . . Propulsion . | . . . . . Utility . | . . . . . Weapon . | . . . . . Parts Attached 28 | 8 11 . . 9 Power 3 | 1 1 . . 1 Engine 2 | 1 1 . . . Core 1 | . . . . 1 Reactor . | . . . . . Propulsion 11 | 3 4 . . 4 Treads 5 | . 2 . . 3 Leg . | . . . . . Wheel 6 | 3 2 . . 1 Hover . | . . . . . Flight . | . . . . . Utility 5 | 2 2 . . 1 Device 2 | 1 . . . 1 Storage 3 | 1 2 . . . Processor . | . . . . . Hackware . | . . . . . Protection . | . . . . . Artifact . | . . . . . Weapon 9 | 2 4 . . 3 Energy Gun 3 | . 2 . . 1 Energy Cannon . | . . . . . Ballistic Gun 5 | 2 2 . . 1 Ballistic Cannon . | . . . . . Launcher 1 | . . . . 1 Special Weapon . | . . . . . Impact Weapon . | . . . . . Slashing Weapon . | . . . . . Piercing Weapon . | . . . . . Special Melee Weapon . | . . . . . Unidentified Prototypes . | . . . . . Parts Lost 9 | . 1 . . 8 Power 3 | . 1 . . 2 Propulsion 4 | . . . . 4 Utility . | . . . . . Weapon 2 | . . . . 2 Highest Loss Streak 8 | . 1 . . 8 To Critical Strikes . | . . . . . Average Slot Usage (%) 99 | . 100 100 100 95 Engine 13 | . 14 14 14 9 Treads 1 | . . . . 9 Wheel 26 | . 27 28 28 17 Device 14 | . 14 14 14 14 Storage 14 | . 14 14 14 14 Energy Gun 11 | . 9 14 14 10 Ballistic Gun 15 | . 18 14 14 14 Naked Turns . | . . . . . Heaviest Build 31 | 12 30 30 30 31 Greatest Support 40 | 26 20 20 20 40 Greatest Overweight (x) 1 | . 1 1 1 1 Average Overweight (x) . | . . 1 1 . Largest Inventory Capacity 15 | 8 15 15 15 15 Average Capacity 12 | 7 9 15 15 15 Most Carried 15 | 7 13 15 15 15 Average Carried 11 | 4 9 13 14 13 Final Capacity 15 | 8 15 15 15 15 Final Carried 15 | 7 13 15 15 8 Class Distribution -------------------- 94% | Mutant 5% | Skirmisher Dominant Class ---------------- Mutant | -10/Materials Mutant | -10/Mines Mutant | -10/Exiles Mutant | -9/Mines Resources | -11 -10 -10 -10 -9 ----------- Run | Scr Mat Min Exi Min Matter Collected 748 | 260 253 15 210 10 Remotely . | . . . . . Salvage Created 600 | 105 474 15 . 6 Parts 38 | 8 26 3 . 1 Haulers Intercepted 2 | . 2 . . . Recyclers Shooed 1 | . 1 . . . Parts Field Recycled . | . . . . . Retrieved Matter . | . . . . . Parts Self-Destructed . | . . . . . Prevented . | . . . . . Kills | -11 -10 -10 -10 -9 ------- Run | Scr Mat Min Exi Min Combat Hostiles Destroyed 7 | . 7 . . . Guns 7 | . 7 . . . Classes Destroyed 7 | 2 3 1 . 1 Worker 1 | . . . . 1 Builder 1 | . . 1 . . Tunneler 2 | 2 . . . . Hauler 2 | . 2 . . . Recycler 1 | 1 . . . . Watcher 2 | . 2 . . . Grunt 7 | . 7 . . . Best Kill Streak 3 | 2 3 1 . 1 Combat Bots Only 2 | . 2 . . . Max Kills in Single Turn 1 | 1 1 1 . 1 Gunslinging . | . . . . . Exploded . | . . . . . Melee . | . . . . . Uniques/NPCs Destroyed . | . . . . . Combat | -11 -10 -10 -10 -9 -------- Run | Scr Mat Min Exi Min Damage Taken 1225 | . 256 . . 969 Core 263 | . 49 . . 214 Absorbed by Shields . | . . . . . Core Remaining (%) 100 | 100 . . . . Volleys Fired 44 | 6 28 3 . 7 Largest 2 | 2 2 2 . 2 Hottest 60 | 40 60 60 . 60 Shots Fired 87 | 12 56 6 . 13 Gun 83 | 12 56 6 . 9 Cannon . | . . . . . Launcher 4 | . . . . 4 Special . | . . . . . Kinetic 61 | 12 40 3 . 6 Thermal . | . . . . . Explosive 4 | . . . . 4 Electromagnetic 22 | . 16 3 . 3 Robot Hit Streak 7 | 7 6 7 . 6 Robot Miss Streak 4 | 1 4 2 . 2 Penetration Max . | . . . . . Secondary Targets . | . . . . . Shots Hit Robots 49 | 9 29 2 . 9 Core Hits 36 | 5 21 1 . 9 Critical Kills . | . . . . . Critical Parts Destroyed . | . . . . . Critical Strikes . | . . . . . Melee Attacks . | . . . . . Impact . | . . . . . Slashing . | . . . . . Piercing . | . . . . . Sneak Attacks . | . . . . . Combat Hostiles . | . . . . . Follow-up Attacks . | . . . . . Damage Inflicted 767 | 91 477 27 . 172 Guns 627 | 91 432 27 . 77 Cannons . | . . . . . Explosions 140 | . 45 . . 95 Melee . | . . . . . Ramming . | . . . . . Kinetic 450 | 91 303 . . 56 Thermal 45 | . 45 . . . Explosive 95 | . . . . 95 Electromagnetic 177 | . 129 27 . 21 Impact . | . . . . . Slashing . | . . . . . Piercing . | . . . . . Highest Corruption . | . . . . . Average Corruption . | . . . . . Corruption Purged . | . . . . . Corruption Blocked . | . . . . . Overload Shots . | . . . . . Overflow Damage . | . . . . . Projectiles . | . . . . . Explosions . | . . . . . Melee . | . . . . . Knockbacks . | . . . . . Impact . | . . . . . Kinetic . | . . . . . Secondary . | . . . . . Self-Inflicted Damage . | . . . . . Shots . | . . . . . Rammed . | . . . . . Targets Rammed . | . . . . . Kicked . | . . . . . Crushed . | . . . . . Highest Temperature 27 | . 27 . . . Average Temperature 14 | . 14 . . . Received Heat Transfer 141 | . 141 . . . Siege Activations . | . . . . . Robots Corrupted . | . . . . . Combat Hostiles . | . . . . . Parts Fried 1 | . 1 . . . Impact Corruptions . | . . . . . Robots Melted . | . . . . . Combat Hostiles . | . . . . . Parts Melted . | . . . . . Heat Transferred 50 | . 50 . . . Parts Sabotaged . | . . . . . Parts Stolen . | . . . . . Parts Stripped . | . . . . . Power Chain Reactions 1 | . 1 . . . Missiles Intercepted . | . . . . . Alert | -11 -10 -10 -10 -9 ------- Run | Scr Mat Min Exi Min Peak Influence 273 | 15 273 39 . 36 Initial 34 | . 9 34 . . Average 79 | 7 133 37 . 1 Maximum Alert Level 1 | . 1 . . . Low Security (%) 86 | 100 74 100 . 100 Level 1 13 | . 25 . . . Level 2 . | . . . . . Level 3 . | . . . . . Level 4 . | . . . . . Level 5 . | . . . . . High Security . | . . . . . Max Security . | . . . . . Squads Dispatched 2 | . 2 . . . Investigation 1 | . 1 . . . Extermination . | . . . . . Reinforcement 1 | . 1 . . . Assault . | . . . . . Garrison . | . . . . . Intercept . | . . . . . Searches Triggered . | . . . . . Construction Impeded . | . . . . . Haulers Reinforced . | . . . . . Active Scanning Responses . | . . . . . Cargo Convoy Interrupts . | . . . . . Stealth | -11 -10 -10 -10 -9 --------- Run | Scr Mat Min Exi Min Distress Signals 1 | . 1 . . . Communications Jammed . | . . . . . Distress Signals . | . . . . . Times Spotted 27 | . 10 . . 17 Peak Tracking Total 12 | . 3 . . 12 Tactical Retreats 1 | . . . . 1 Traps | -11 -10 -10 -10 -9 ------- Run | Scr Mat Min Exi Min Traps Triggered . | . . . . . Indirectly . | . . . . . Trap Hack Attempts . | . . . . . Triggered . | . . . . . Disarmed . | . . . . . Reprogrammed . | . . . . . Reused . | . . . . . Traps Extracted . | . . . . . Installed . | . . . . . Triggered . | . . . . . Exploded 2 | . . . 2 . Machines | -11 -10 -10 -10 -9 ---------- Run | Scr Mat Min Exi Min Machines Disabled . | . . . . . Max in Single Turn . | . . . . . Machines Sabotaged . | . . . . . Garrisons Compromised . | . . . . . Overloaded Fab Kills . | . . . . . Hacking | -11 -10 -10 -10 -9 --------- Run | Scr Mat Min Exi Min Machines Accessed 6 | . 5 . 1 . Terminals 5 | . 5 . . . Fabricators . | . . . . . Repair Stations . | . . . . . Recycling Units . | . . . . . Scanalyzers . | . . . . . Garrison Access . | . . . . . Total Hacks 16 | . 15 . 1 . Successful 8 | . 7 . 1 . Failed 8 | . 8 . . . Catastrophic 1 | . 1 . . . Database Lockouts . | . . . . . Manual 13 | . 12 . 1 . Terminals 15 | . 15 . . . Fabricators . | . . . . . Repair Stations . | . . . . . Recycling Units . | . . . . . Scanalyzers . | . . . . . Garrison Access . | . . . . . Terminal Hacks 5 | . 4 . 1 . Robot Analysis 3 | . 3 . . . Locate Traps 1 | . 1 . . . EX-Prototype ID Bank 1 | . . . 1 . Fabricator Hacks . | . . . . . Repair Station Hacks . | . . . . . Recycling Unit Hacks . | . . . . . Scanalyzer . | . . . . . Garrison Access Hacks . | . . . . . Unauthorized Hacks 3 | . 3 . . . Terminals 3 | . 3 . . . Track 1 | . 1 . . . Botnet 2 | . 2 . . . Fabricators . | . . . . . Repair Stations . | . . . . . Recycling Units . | . . . . . Scanalyzers . | . . . . . Garrison Access . | . . . . . Data Cores Recovered . | . . . . . Used . | . . . . . Hacking Detections 5 | . 5 . . . Full Trace Events 1 | . 1 . . . Feedback Events . | . . . . . Feedback Blocked . | . . . . . Robot Schematics Acquired . | . . . . . Robots Built . | . . . . . Authchips . | . . . . . Time . | . . . . . Total Robot Build Rating . | . . . . . Part Schematics Acquired . | . . . . . Parts Built . | . . . . . Authchips . | . . . . . Time . | . . . . . Total Part Build Rating . | . . . . . Parts Repaired . | . . . . . Time . | . . . . . Parts Recycled . | . . . . . Recycled Matter . | . . . . . Retrieved Matter . | . . . . . Retrieved Components . | . . . . . Parts Scanalyzed . | . . . . . Part Schematics Acquired . | . . . . . Parts Damaged . | . . . . . Bothacking | -11 -10 -10 -10 -9 ------------ Run | Scr Mat Min Exi Min Used RIF Installer . | . . . . . Robots Hacked . | . . . . . Non-combat . | . . . . . Combat . | . . . . . Robot Hacks Applied . | . . . . . Relay Couplers Released . | . . . . . Fabnet Peak Effective % . | . . . . . Robots Rewired . | . . . . . Allies Hacked . | . . . . . Hacks Repelled . | . . . . . Allies | -11 -10 -10 -10 -9 -------- Run | Scr Mat Min Exi Min Total Allies . | . . . . . Largest Group . | . . . . . Highest-Rated Group . | . . . . . Highest-Rated Ally . | . . . . . Total Orders . | . . . . . Ally Attacks . | . . . . . Total Damage . | . . . . . Kills . | . . . . . Allies Corrupted . | . . . . . Allies Melted . | . . . . . Intel | -11 -10 -10 -10 -9 ------- Run | Scr Mat Min Exi Min Robot Analysis Total 3 | . 3 . . . Derelict Logs Recovered 2 | . . 1 . 1 Drone Launches . | . . . . . Drone Recoveries . | . . . . . Exploration | -11 -10 -10 -10 -9 ------------- Run | Scr Mat Min Exi Min Turns Passed 1081 | 69 430 196 258 128 Spaces Moved 962 | 44 363 194 269 92 Core 9 | 9 . . . . Treads 15 | . . . . 15 Legs . | . . . . . Wheels 938 | 35 363 194 269 77 Hover . | . . . . . Flight . | . . . . . Fastest Speed 50 | 50 80 95 95 95 Average Speed 90 | 76 82 95 95 105 Slowest Speed 160 | 100 95 95 95 160 Overloaded Moves . | . . . . . Propulsion Burnouts . | . . . . . Robots Hopped . | . . . . . Cave-ins Triggered . | . . . . . Exploration Rate (%) 45 | 3 72 45 64 41 Regions Visited 4 Branch Regions 3 Pre-discovered Areas 1 | . . . . 1 Known Exits Taken . | . . . . . Unknown Exits Taken 4 | 1 1 1 1 . Scrap Searched 1 | . . . . 1 Spaces Dug . | . . . . . Terrain Destroyed 22 | . 6 . . 16 Melee . | . . . . . Projectile . | . . . . . AOE 22 | . 6 . . 16 Terrain Rammed . | . . . . . Walls Destroyed . | . . . . . Machines Disabled . | . . . . . Actions | -11 -10 -10 -10 -9 --------- Run | Scr Mat Min Exi Min Total 1080 | 65 436 199 272 108 Wait 20 | . 19 1 . . Move 958 | 43 362 193 268 92 Hop . | . . . . . Pick Up 21 | 8 9 2 2 . Fast Attach 7 | 5 2 . . . Attach 10 | 2 1 . . 7 Detach . | . . . . . Swap 11 | 1 8 . . 2 Drop 9 | . 7 . 2 . Fire 44 | 6 28 3 . 7 Melee . | . . . . . Ram . | . . . . . Kick . | . . . . . Crush . | . . . . . Escape Stasis . | . . . . . Rewire . | . . . . . Trap . | . . . . . Miscellaneous . | . . . . . Route ------- -11/Scrapyard -10/Materials (discovered 2 exits: [*Mat] / [*Min]) -10/Mines -10/Exiles -9/Mines History --------- Turn | Location | Event 18 | -11/Scrapyard | Discovered new exit (range 15) 70 | -11/Scrapyard | Entered Materials 194 | -10/Materials | Discovered new exit (range 8) 300 | -10/Materials | Build established: Mutant 401 | -10/Materials | Discovered new exit (range 14) 500 | -10/Materials | Entered Mines 611 | -10/Mines | Learned 2 Materials zone layouts 678 | -10/Mines | YI-UF0 nonchalantly dropped a Grenade Launcher on the ground 692 | -10/Mines | Deemed a non-threat by the Exiles lab entrance 692 | -10/Mines | Discovered new exit (range 5) 696 | -10/Mines | Entered Exiles 719 | -10/Exiles | Met 8R-AWN 735 | -10/Exiles | Met EX-HEX 801 | -10/Exiles | Met EX-BIN 811 | -10/Exiles | Aligned with FarCom system 812 | -10/Exiles | Given EX-Vault access code 835 | -10/Exiles | Opened EX-Vault 841 | -10/Exiles | Found Longsword +1 862 | -10/Exiles | Warned to stay clear of 0b10 Research branches 876 | -10/Exiles | Exiles lab attacked by MAIN.C 947 | -10/Exiles | Discovered new exit (range 10) 954 | -10/Exiles | Left Exiles lab with Longsword +1 954 | -10/Exiles | Entered Mines 998 | -9/Mines | Learned location of Storage (-8) 1010 | -9/Mines | Assembled infested the area 1015 | -9/Mines | Assisted by a Guerilla fighting off Assembled 1046 | -9/Mines | Core integrity fell below 50% 1081 | -9/Mines | Core integrity fell below 20% 1082 | -9/Mines | Destroyed by as-33511 with Assembled Maul Last Messages --------------- 01040_ Ion Engine destroyed. 01041_ Grenade Launcher destroyed. 01042_ Lgt. Treads destroyed. 01044_ The unstable cave ceiling collapses. 01044_ Assault Rifle destroyed. 01045_ D-53 Grenadier destroyed. 01047_ The unstable cave ceiling collapses. 01047_ as-52870 destroyed. 01048_ The unstable cave ceiling collapses. 01056_ as-76243 destroyed. 01056_ as-48755 destroyed. 01056_ T-07 Excavator destroyed. 01056_ Lgt. Nuclear Core destroyed. 01058_ as-29366 destroyed. 01058_ D-53 Grenadier destroyed. 01058_ as-73176 destroyed. 01062_ The unstable cave ceiling collapses. 01067_ as-74182 sneak attacks. 01067_ U-05 Engineer destroyed. 01080_ Lgt. Treads destroyed. Map ----- +----------------------------------------------------+ | | | | | | | | | ?????????????????????????????????????????????????? | | ?????????????????????????????????????????????????? | | ?????????????????????????????????????????????????? | | ?????????????????????????????????????????????????? | | ?????????????????????????????????????????????????? | | ?????????????????????????????????????????????????? | | ?????????????????????????????????????????????????? | | ?????????????????????????????????????????????????? | | ?????????????????????????????????????????????????? | | ?????????????????????????????????????????????????? | | ?????????????????????????????????????????????????? | | ?????????????????????????????????????????????????? | | ?????????????????????????????????????????????????? | | ?????????????????????????????????????????????????? | | ?????????????????????????????????????????????????? | | ?????????????????????????????????????????????????? | | ???????#?###?????????????????????????????????????? | | ????? ## #????????????????????s???????????????? | | ???? ??######????????????ss?s????????????? | | ???? ### ##??????#????????????????????? | | ???? ###### #????????????????????? | | ???? a@ #?????????????#??????? | | ????# ?# ak #????????????????????? | | ????# ## a #####????????????????????? | | #?# a #??????????##????????????? | | ??????## aaa ##?###??#?????????????????# | | ??????## % =%! ##### #????????????????????# | | ??????## ! ## #### #???????????####?????? | | ###### # ## ### #??????????## ##????# | | ### #?????#????# ##??# | | ############ ### | | * %[ | | ! ## = | | ### ##################### | | ??## # #???????#????#??????# | | ???#??# #??????????????????## | | ??????# ##???????????????#### | | ???? # ##??????#?????????# | | ???? ?## # ##????????????????# | | ???##???###% # # ##????????#????????# ## | | ??????????# #####??????????????????### ##? | | ??????????# #????????????????????????## ##? | | ??????????# #????#????????????????????# #? | | ??????????# #?????????????????????????## #? | | ??????????# #??????????????????????????## ##? | | ??????????# ##????????????????????????#?### ##?? | +----------------------------------------------------+ Best States ------------- Heat Dissipation 39 Energy Generation 14 Energy Capacity 250 Matter Stores 300 Matter Capacity 300 Sight Range 16 Terrain Scan Range 16 Terrain Scan Density 10 Evasion (%) 50 Recoil Reduction 2 Item Schematics ----------------- None Robot Schematics ------------------ None Fabricated ------------ Nothing Alien Tech Used ----------------- None Achievements -------------- None Challenges ------------ None Game ------ Seed BurstDeuteriumCoupler Manual? 0 Play Time 00:15:15 Cumulative 712.6 hours Start 2022.07.02 @ 12:17:03 End 2022.07.02 @ 12:29:45 Sessions 1 Manual Loads 0 Difficulty Rogue Special Mode None Game No. 378 Rogue 251 Adventurer 125 Explorer 2 Win Type - Total 83 Types 72/4/4/1/1/0/0/0/1 Lore% 81 Gallery% 88 Achievement% 76 Wizard Run 0 Options --------- ASCII 0 Keyboard 1 Movement Numpad Keybinds 0 Fullscreen 1 Font 36/TerminusFine Map View 76x50 Tactical HUD 1 Map Filters NONE Filters NONE Steam 1 RUN: 8128d1a6-53b3-4df2-ac60-d151f38291a4